fUST/lending_fUST_20240624
["ID","MTS","AMOUNT","RATE_DAILY","PERIOD"]
[330265275,1719215411902,1188.13,0.000224,31]
[330265276,1719215412090,1188.13,0.000224,31]
[330265277,1719215412142,1188.13,0.000224,31]
[330265278,1719215412192,1188.13,0.000224,31]
[330265279,1719215412251,1188.13,0.000224,31]
[330265280,1719215412308,1188.13,0.000224,31]
[330265281,1719215412355,1188.13,0.000224,31]
[330265282,1719215412401,1188.13,0.000224,31]
[330265283,1719215412448,1188.13,0.000224,31]
[330265284,1719215412504,1188.13,0.000224,31]
[330265285,1719215412553,1188.13,0.000224,31]
[330265286,1719215412604,1188.13,0.000224,31]
[330265287,1719215413218,1188.13,0.000224,31]
[330265306,1719215432173,-457.45943987,0.00017456,2]
[330265308,1719215432183,-157.19006853,0.00017499,2]
[330265310,1719215432193,-1287.52685621,0.00017704,2]
[330265312,1719215432202,-506.195643,0.00017804,2]
[330265313,1719215432211,-504.01341536,0.00017804,2]
[330265315,1719215432220,-503.18610739,0.00017804,2]
[330265317,1719215432230,-502.92027951,0.00017804,2]
[330265318,1719215432238,-509.79272483,0.00017804,2]
[330265320,1719215432248,-516.19668802,0.00017804,2]
[330265322,1719215432260,-500.0,0.00017804,2]
[330265323,1719215432269,-500.0,0.00017804,2]
[330265325,1719215432278,-500.0,0.00017804,2]
[330265327,1719215432287,-478.74,0.00017804,2]
[330265329,1719215432296,-500.0,0.00017804,2]
[330265330,1719215432306,-500.0,0.00017804,2]
[330265331,1719215432315,-500.0,0.00017804,2]
[330265332,1719215432324,-500.0,0.00017804,2]
[330265333,1719215432333,-500.0,0.00017804,2]
[330265334,1719215432342,-500.0,0.00017804,2]
[330265335,1719215432351,-500.0,0.00017804,2]
[330265336,1719215432360,-385.23,0.00017804,2]
[330265337,1719215432369,-500.0,0.00017804,2]
[330265338,1719215432379,-500.0,0.00017804,2]
[330265339,1719215432388,-500.0,0.00017804,2]
[330265340,1719215432397,-286.39912426,0.00017892,2]
[330265341,1719215432406,-333.800602,0.000179,2]
[330265342,1719215432414,-500.0,0.00017996,2]
[330265343,1719215432423,-500.0,0.00017996,2]
[330265344,1719215432432,-500.0,0.00017997,2]
[330265345,1719215432442,-2783.55,0.00017997,2]
[330265346,1719215432450,-500.0,0.00017997,2]
[330265347,1719215432459,-500.0,0.00017997,2]
[330265348,1719215432467,-500.0,0.00017997,2]
[330265349,1719215432476,-500.0,0.00017997,2]
[330265350,1719215432485,-500.0,0.00017997,2]
[330265351,1719215432495,-500.0,0.00017997,2]
[330265352,1719215432504,-513.14111523,0.00017997,2]
[330265353,1719215432515,-500.0,0.00017997,2]
[330265354,1719215432524,-500.0,0.00017997,2]
[330265355,1719215432533,-500.0,0.00017997,2]
[330265356,1719215432543,-634.24,0.00017997,2]
[330265357,1719215432552,-512.89500092,0.00017997,2]
[330265358,1719215432562,-500.0,0.00017997,2]
[330265359,1719215432571,-501.45196615,0.00017997,2]
[330265360,1719215432580,-507.07728586,0.00017997,2]
[330265361,1719215432589,-502.29816337,0.00017997,2]
[330265362,1719215432598,-503.43712126,0.00017997,2]
[330265363,1719215432607,-539.78,0.00017998,2]
[330265364,1719215432617,-500.0,0.00017998,2]
[330265365,1719215432626,-500.0,0.00017998,2]
[330265366,1719215432635,-500.0,0.00017998,2]
[330265367,1719215432644,-671.29,0.00017998,2]
[330265368,1719215432653,-500.0,0.00017998,2]
[330265369,1719215432662,-500.0,0.00017998,2]
[330265370,1719215432671,-1088.38,0.00017998,2]
[330265371,1719215432680,-500.0,0.00017998,2]
[330265372,1719215432689,-500.0,0.00018078,2]
[330265373,1719215432698,-412.79023526,0.00018078,2]
[330265374,1719215432707,-500.0,0.00018078,2]
[330265375,1719215432716,-500.0,0.00018078,2]
[330265376,1719215432725,-245.47,0.00018078,2]
[330265377,1719215432735,-401.65252924,0.00018186,2]
[330265378,1719215432745,-565.7746747,0.00018269,2]
[330265379,1719215432754,-500.0,0.0001827,2]
[330265380,1719215432765,-500.0,0.0001827,2]
[330265381,1719215432774,-2003.19528811,0.00018271,2]
[330265382,1719215434354,251.86041194,0.00016868,2]
[330265383,1719215434372,35.23155592,0.00016868,2]
[330265392,1719215438236,-497.77770244,0.00018271,2]
[330265484,1719215611877,3000.0,0.000225,30]
[330265486,1719216022713,950.63,0.000224,31]
[330265487,1719216022769,950.63,0.000224,31]
[330265488,1719216022862,950.63,0.000224,31]
[330265489,1719216022917,950.63,0.000224,31]
[330265490,1719216023144,950.63,0.000224,31]
[330265491,1719216023195,950.63,0.000224,31]
[330265492,1719216023247,950.63,0.000224,31]
[330265493,1719216023298,950.63,0.000224,31]
[330265494,1719216023347,950.63,0.000224,31]
[330265495,1719216023395,950.63,0.000224,31]
[330265496,1719216023447,950.63,0.000224,31]
[330265497,1719216023499,950.63,0.000224,31]
[330265498,1719216023550,950.63,0.000224,31]
[330265499,1719216023600,950.63,0.000224,31]
[330265500,1719216023651,950.63,0.000224,31]
[330265501,1719216023700,950.63,0.000224,31]
[330265502,1719216023749,950.63,0.000224,31]
[330265503,1719216023802,950.63,0.000224,31]
[330265504,1719216023849,950.63,0.000224,31]
[330265505,1719216023922,950.63,0.000224,31]
[330265507,1719216091348,200.0,0.00023012,120]
[330265508,1719216151948,200.0,0.00022875,120]
[330265509,1719216205523,3000.0,0.000225,30]
[330265510,1719216212014,200.0,0.00024875,120]
[330265512,1719216549251,-198.0,0.00015022,2]
[330265513,1719216549274,-500.0,0.00015102,2]
[330265514,1719216549293,-112.81589619,0.00016896,2]
[330265515,1719216571144,-67.40810181,0.00016896,2]
[330265564,1719216635147,760.6,0.000224,31]
[330265565,1719216635197,760.6,0.000224,31]
[330265566,1719216635263,760.6,0.000224,31]
[330265567,1719216635333,760.6,0.000224,31]
[330265568,1719216635387,760.6,0.000224,31]
[330265569,1719216635446,760.6,0.000224,31]
[330265570,1719216635509,760.6,0.000224,31]
[330265571,1719216635574,760.6,0.000224,31]
[330265572,1719216635628,760.6,0.000224,31]
[330265573,1719216635695,760.6,0.000224,31]
[330265574,1719216635756,760.6,0.000224,31]
[330265575,1719216635822,760.6,0.000224,31]
[330265576,1719216635884,760.6,0.000224,31]
[330265577,1719216635953,760.6,0.000224,31]
[330265578,1719216636108,760.6,0.000224,31]
[330265579,1719216636155,760.6,0.000224,31]
[330265580,1719216636201,760.6,0.000224,31]
[330265581,1719216636247,760.6,0.000224,31]
[330265582,1719216636293,760.6,0.000224,31]
[330265583,1719216636338,760.6,0.000224,31]
[330265659,1719216643488,-500.0,0.00017996,2]
[330265660,1719216643498,-500.0,0.00017996,2]
[330265661,1719216643508,-500.0,0.00017996,2]
[330265662,1719216643519,-500.0,0.00017996,2]
[330265663,1719216643529,-453.42726929,0.00017996,2]
[330265664,1719216643538,-500.0,0.00017997,2]
[330265665,1719216643548,-500.0,0.00017997,2]
[330265666,1719216643558,-500.0,0.00017997,2]
[330265667,1719216643568,-5926.19523831,0.00018,2]
[330265668,1719216643578,-2405.61054958,0.00018081,2]
[330265687,1719216663977,238.41385294,0.00016896,2]
[330265697,1719216805861,3000.0,0.000225,30]
[330265700,1719217127893,1083.38,0.00025,60]
[330265703,1719217247743,608.55,0.000224,31]
[330265704,1719217247802,608.55,0.000224,31]
[330265705,1719217247860,608.55,0.000224,31]
[330265706,1719217247923,608.55,0.000224,31]
[330265707,1719217247987,608.55,0.000224,31]
[330265708,1719217248046,608.55,0.000224,31]
[330265709,1719217248263,608.55,0.000224,31]
[330265710,1719217248314,608.55,0.000224,31]
[330265711,1719217248363,608.55,0.000224,31]
[330265712,1719217248413,608.55,0.000224,31]
[330265713,1719217248462,608.55,0.000224,31]
[330265714,1719217248514,608.55,0.000224,31]
[330265715,1719217248562,608.55,0.000224,31]
[330265716,1719217248610,608.55,0.000224,31]
[330265717,1719217248658,608.55,0.000224,31]
[330265718,1719217248712,608.55,0.000224,31]
[330265719,1719217248762,608.55,0.000224,31]
[330265720,1719217248809,608.55,0.000224,31]
[330265721,1719217248862,608.55,0.000224,31]
[330265722,1719217248911,608.55,0.000224,31]
[330265724,1719217404465,3000.0,0.000225,30]
[330265730,1719217759196,-635.7948789,0.00016626,2]
[330265731,1719217759216,-250.0,0.00016698,2]
[330265732,1719217759239,-234.409934,0.00016742,2]
[330265733,1719217759260,-1840.88122793,0.0001684,2]
[330265734,1719217766217,-244.23759251,0.0001684,2]
[330266613,1719217833060,-1004.47287956,0.0001684,2]
[330266614,1719217833070,-164.19423857,0.00016886,2]
[330266615,1719217833079,-431.64944856,0.00017483,2]
[330266616,1719217833091,-6274.6,0.00017483,2]
[330266617,1719217833103,-335.74189705,0.00017483,2]
[330266618,1719217833112,-320.56450273,0.00017717,2]
[330266619,1719217833121,-446.17672857,0.00017865,2]
[330266620,1719217833140,-1007.88974121,0.00017865,2]
[330266621,1719217833152,-618.90445469,0.00017865,2]
[330266624,1719217833161,-242.41827233,0.00017868,2]
[330266626,1719217833171,-292.92115938,0.00017868,2]
[330266628,1719217833180,-198.45818797,0.00017869,2]
[330266630,1719217833193,-24.54181203,0.00017869,2]
[330266632,1719217833202,-611.2530668,0.0001787,2]
[330266755,1719217840934,-1674.79371648,0.0001684,2]
[330266756,1719217840990,-2092.49545906,0.0001684,2]
[330266757,1719217841001,-491.68811018,0.0001787,2]
[330266758,1719217841012,-179.54081427,0.00017978,2]
[330266759,1719217841022,-802.25613649,0.00017999,2]
[330267974,1719217860111,486.9,0.000224,31]
[330267975,1719217860161,486.9,0.000224,31]
[330267976,1719217860221,486.9,0.000224,31]
[330267977,1719217860287,486.9,0.000224,31]
[330267978,1719217860356,486.9,0.000224,31]
[330267979,1719217860408,486.9,0.000224,31]
[330267980,1719217860597,486.9,0.000224,31]
[330267981,1719217860644,486.9,0.000224,31]
[330267982,1719217860825,486.9,0.000224,31]
[330267983,1719217860879,486.9,0.000224,31]
[330267984,1719217860933,486.9,0.000224,31]
[330267985,1719217860981,486.9,0.000224,31]
[330267986,1719217861041,486.9,0.000224,31]
[330267987,1719217861089,486.9,0.000224,31]
[330267988,1719217861137,486.9,0.000224,31]
[330267989,1719217861185,486.9,0.000224,31]
[330267990,1719217861241,486.9,0.000224,31]
[330267991,1719217861292,486.9,0.000224,31]
[330267992,1719217861361,486.9,0.000224,31]
[330267993,1719217861472,486.9,0.000224,31]
[330268340,1719218002027,3000.0,0.000225,30]
[330268522,1719218472617,389.57,0.000224,31]
[330268523,1719218472737,389.57,0.000224,31]
[330268524,1719218472785,389.57,0.000224,31]
[330268525,1719218472839,389.57,0.000224,31]
[330268526,1719218472890,389.57,0.000224,31]
[330268527,1719218472936,389.57,0.000224,31]
[330268528,1719218472982,389.57,0.000224,31]
[330268529,1719218473031,389.57,0.000224,31]
[330268530,1719218473079,389.57,0.000224,31]
[330268531,1719218473131,389.57,0.000224,31]
[330268532,1719218473183,389.57,0.000224,31]
[330268533,1719218473236,389.57,0.000224,31]
[330268534,1719218473384,389.57,0.000224,31]
[330268535,1719218473431,389.57,0.000224,31]
[330268536,1719218473487,389.57,0.000224,31]
[330268537,1719218473533,389.57,0.000224,31]
[330268538,1719218473580,389.57,0.000224,31]
[330268539,1719218473652,389.57,0.000224,31]
[330268540,1719218473706,389.57,0.000224,31]
[330268541,1719218473773,389.57,0.000224,31]
[330268555,1719218601663,3000.0,0.000225,30]
[330268572,1719218949290,-209.12519749,0.00016824,2]
[330268573,1719218962129,-209.12519749,0.00016824,2]
[330268574,1719218968119,-18816.85648563,0.00016824,2]
[330268598,1719219033708,-287.09196786,0.00016824,2]
[330268599,1719219033717,-116.38681149,0.00016824,2]
[330268600,1719219033794,-558.5063079,0.00016824,2]
[330268601,1719219033803,-6611.60818364,0.00017082,2]
[330268602,1719219033812,-228.93996915,0.00017259,2]
[330268603,1719219033821,-276.08930439,0.00017299,2]
[330268604,1719219033830,-394.80475809,0.00017299,2]
[330268605,1719219033839,-481.31478559,0.00017483,2]
[330268606,1719219033848,-990.65106447,0.00017497,2]
[330268607,1719219033857,-174.0,0.00017528,2]
[330268608,1719219033866,-947.4992689,0.00017551,2]
[330268609,1719219033875,-620.00000681,0.00017589,2]
[330268611,1719219033884,-154.82195475,0.00017717,2]
[330268613,1719219033893,-154.82195475,0.00017717,2]
[330268615,1719219033903,-306.0,0.000178,2]
[330268617,1719219033912,-159.35965211,0.0001787,2]
[330268619,1719219033922,-269.6595478,0.00017999,7]
[330268621,1719219033931,-154.79103211,0.00018,2]
[330268623,1719219033941,-244.23759251,0.0001808,2]
[330268625,1719219033950,-3085.23,0.0001808,2]
[330268626,1719219033959,-500.0,0.0001808,2]
[330268628,1719219033968,-184.92,0.0001808,2]
[330268629,1719219033977,-500.0,0.0001808,2]
[330268630,1719219033986,-695.98,0.0001808,2]
[330268632,1719219033996,-500.0,0.0001808,2]
[330268634,1719219034006,-500.0,0.0001808,2]
[330268635,1719219034015,-500.0,0.0001808,2]
[330268637,1719219034024,-500.0,0.0001808,2]
[330268639,1719219034033,-500.0,0.0001808,2]
[330268641,1719219034043,-500.0,0.0001808,2]
[330268643,1719219034051,-500.0,0.0001808,2]
[330268644,1719219034061,-3262.29001833,0.00018081,2]
[330268737,1719219043884,-723.78639686,0.00017499,2]
[330268739,1719219043895,-14332.09943209,0.00018081,2]
[330268741,1719219043904,-151.0,0.00018081,2]
[330268743,1719219043914,-291.22310212,0.0001809,2]
[330268745,1719219043924,-500.0,0.00018186,2]
[330268747,1719219043933,-2563.36,0.00018189,2]
[330268749,1719219043943,-500.0,0.00018189,2]
[330268751,1719219043952,-654.86679893,0.00018189,2]
[330268999,1719219083878,311.7,0.000224,31]
[330269000,1719219083928,311.7,0.000224,31]
[330269001,1719219083988,311.7,0.000224,31]
[330269002,1719219084050,311.7,0.000224,31]
[330269003,1719219084121,311.7,0.000224,31]
[330269004,1719219084184,311.7,0.000224,31]
[330269005,1719219084237,311.7,0.000224,31]
[330269006,1719219084303,311.7,0.000224,31]
[330269007,1719219084500,311.7,0.000224,31]
[330269008,1719219084550,311.7,0.000224,31]
[330269009,1719219084610,311.7,0.000224,31]
[330269010,1719219084667,311.7,0.000224,31]
[330269011,1719219084721,311.7,0.000224,31]
[330269012,1719219084781,311.7,0.000224,31]
[330269013,1719219084877,311.7,0.000224,31]
[330269014,1719219084935,311.7,0.000224,31]
[330269015,1719219084983,311.7,0.000224,31]
[330269016,1719219085030,311.7,0.000224,31]
[330269017,1719219085090,311.7,0.000224,31]
[330269018,1719219085142,311.7,0.000224,31]
[330270778,1719219154982,500.0,0.00014006,2]
[330271956,1719219200847,3000.0,0.000225,30]
[330271961,1719219261146,500.0,0.00012636,2]
[330271962,1719219262796,500.0,0.0001428,2]
[330271970,1719219305483,1669.0,0.000224,30]
[330271976,1719219322658,166.25146166,0.0001428,2]
[330271987,1719219425312,3767.28917554,0.0001428,2]
[330271996,1719219507889,500.0,0.00012636,2]
[330272000,1719219509532,500.0,0.0001428,2]
[330272022,1719219530028,500.46201829,0.0002501,59]
[330272042,1719219695802,246.27,0.000224,31]
[330272043,1719219695912,246.27,0.000224,31]
[330272044,1719219695974,246.27,0.000224,31]
[330272045,1719219696029,246.27,0.000224,31]
[330272046,1719219696090,246.27,0.000224,31]
[330272047,1719219696167,246.27,0.000224,31]
[330272048,1719219696365,246.27,0.000224,31]
[330272049,1719219696417,246.27,0.000224,31]
[330272050,1719219696470,246.27,0.000224,31]
[330272051,1719219696526,246.27,0.000224,31]
[330272052,1719219696586,246.27,0.000224,31]
[330272053,1719219696640,246.27,0.000224,31]
[330272054,1719219696696,246.27,0.000224,31]
[330272055,1719219696745,246.27,0.000224,31]
[330272056,1719219696801,246.27,0.000224,31]
[330272057,1719219696853,246.27,0.000224,31]
[330272058,1719219696905,246.27,0.000224,31]
[330272059,1719219696953,246.27,0.000224,31]
[330272060,1719219697010,246.27,0.000224,31]
[330272062,1719219703632,246.27,0.000224,31]
[330272076,1719219820177,3000.0,0.000225,30]
[330272081,1719219929977,300.0,0.00026,120]
[330272082,1719219989246,300.0,0.0002501,59]
[330272085,1719220155985,500.0,0.00012636,2]
[330272086,1719220157570,500.0,0.0001428,2]
[330272087,1719220199749,-320.00473016,0.00015924,2]
[330272088,1719220199796,-179.99526984,0.00015924,2]
[330272089,1719220199827,-300.0,0.00016091,2]
[330272090,1719220199857,-81.94598846,0.00016091,2]
[330272139,1719220233361,-300.0,0.00016091,2]
[330272141,1719220233370,-261.46296804,0.00016091,2]
[330272151,1719220233595,-38.53703196,0.00016091,2]
[330272153,1719220233604,-155.02687329,0.00016091,2]
[330272155,1719220233614,-359.16103563,0.00016092,2]
[330272165,1719220240823,-24540.83896437,0.00016092,2]
[330272166,1719220240833,-264.1118477,0.00016181,2]
[330272167,1719220240843,-591.106529,0.00016246,2]
[330272168,1719220240852,-1168.57145889,0.00016856,2]
[330272169,1719220240862,-153.0,0.00016933,2]
[330272170,1719220240872,-153.0,0.00016933,2]
[330272171,1719220240880,-71.07853678,0.00016933,2]
[330272310,1719220267834,500.0,0.00014006,2]
[330272311,1719220308293,200.16,0.000224,31]
[330272312,1719220308354,200.16,0.000224,31]
[330272313,1719220308432,200.16,0.000224,31]
[330272314,1719220308488,200.16,0.000224,31]
[330272315,1719220308536,200.16,0.000224,31]
[330272316,1719220308735,200.16,0.000224,31]
[330272317,1719220308785,200.16,0.000224,31]
[330272318,1719220308835,200.16,0.000224,31]
[330272319,1719220308886,200.16,0.000224,31]
[330272320,1719220308939,200.16,0.000224,31]
[330272321,1719220308986,200.16,0.000224,31]
[330272322,1719220309032,200.16,0.000224,31]
[330272323,1719220309078,200.16,0.000224,31]
[330272324,1719220309140,200.16,0.000224,31]
[330272325,1719220309188,200.16,0.000224,31]
[330272326,1719220309276,200.16,0.000224,31]
[330272327,1719220309324,200.16,0.000224,31]
[330272328,1719220309384,200.16,0.000224,31]
[330272329,1719220309447,200.16,0.000224,31]
[330272330,1719220309495,200.16,0.000224,31]
[330272332,1719220347670,814.75,0.000225,30]
[330272334,1719220401039,3000.0,0.000225,30]
[330272373,1719220920130,160.15,0.000224,31]
[330272374,1719220920194,160.15,0.000224,31]
[330272375,1719220920244,160.15,0.000224,31]
[330272376,1719220920306,160.15,0.000224,31]
[330272377,1719220920373,160.15,0.000224,31]
[330272378,1719220920433,160.15,0.000224,31]
[330272379,1719220920494,160.15,0.000224,31]
[330272380,1719220920547,160.15,0.000224,31]
[330272381,1719220920714,160.15,0.000224,31]
[330272382,1719220920866,160.15,0.000224,31]
[330272383,1719220920933,160.15,0.000224,31]
[330272384,1719220920992,160.15,0.000224,31]
[330272385,1719220921041,160.15,0.000224,31]
[330272386,1719220921091,160.15,0.000224,31]
[330272387,1719220921147,160.15,0.000224,31]
[330272388,1719220921201,160.15,0.000224,31]
[330272389,1719220921249,160.15,0.000224,31]
[330272390,1719220921296,160.15,0.000224,31]
[330272391,1719220921343,160.15,0.000224,31]
[330272392,1719220924299,160.15,0.000224,31]
[330272442,1719221001623,3000.0,0.000225,30]
[330273053,1719221441852,-268.67671038,0.00015168,2]
[330273054,1719221441863,-300.0,0.00015267,2]
[330273055,1719221441876,-231.0,0.00015267,2]
[330273056,1719221441887,-11271.8314486,0.00015268,2]
[330273057,1719221441902,-12585.00738614,0.00015268,2]
[330273058,1719221441917,-1043.16116526,0.00015268,2]
[330273059,1719221441929,-2085.1188204,0.00015346,2]
[330273060,1719221441941,-53.52140368,0.00015616,2]
[330273186,1719221444649,-335.0,0.00015616,2]
[330273187,1719221444663,-177.36785732,0.00015616,2]
[330273188,1719221444674,-89.38261567,0.0001565,2]
[330273189,1719221444688,-410.61738433,0.0001565,2]
[330273190,1719221444699,-184.72175014,0.00016405,2]
[330273191,1719221444714,-805.92931433,0.00016405,2]
[330273192,1719221444724,-910.46931583,0.00016434,2]
[330273201,1719221444828,-1218.76273557,0.00016434,2]
[330273203,1719221444839,-154.82195475,0.00016437,2]
[330273205,1719221444849,-154.82195475,0.00016452,2]
[330273207,1719221444860,-155.67434626,0.00016486,2]
[330273209,1719221444871,-356.56752112,0.000165,2]
[330274180,1719221454787,-143.43247888,0.000165,2]
[330274181,1719221454796,-2463.8661883,0.00016523,2]
[330274182,1719221454808,-372.66614524,0.00016523,2]
[330274183,1719221454820,-523.58991703,0.00016523,2]
[330275584,1719221531685,152.54,0.000224,31]
[330275585,1719221531771,152.54,0.000224,31]
[330275586,1719221531832,152.54,0.000224,31]
[330275587,1719221531895,152.54,0.000224,31]
[330275588,1719221532024,152.54,0.000224,31]
[330275589,1719221532240,152.54,0.000224,31]
[330275590,1719221532480,152.54,0.000224,31]
[330275591,1719221532558,152.54,0.000224,31]
[330275592,1719221532650,152.54,0.000224,31]
[330275593,1719221532747,152.54,0.000224,31]
[330275594,1719221532823,152.54,0.000224,31]
[330275595,1719221532891,152.54,0.000224,31]
[330275596,1719221532965,152.54,0.000224,31]
[330275597,1719221533051,152.54,0.000224,31]
[330275598,1719221533117,152.54,0.000224,31]
[330275599,1719221533201,152.54,0.000224,31]
[330275600,1719221533511,152.54,0.000224,31]
[330275602,1719221602683,3000.0,0.000225,30]
[330275727,1719221874370,24900.0,0.00014666,2]
[330275728,1719221919154,1102.66100667,0.00025,120]
[330275729,1719222063965,994.340443,0.00014722,2]
[330275730,1719222140057,152.56,0.000224,31]
[330275731,1719222140125,152.56,0.000224,31]
[330275732,1719222140181,152.56,0.000224,31]
[330275733,1719222140238,152.56,0.000224,31]
[330275734,1719222140298,152.56,0.000224,31]
[330275735,1719222140426,152.56,0.000224,31]
[330275736,1719222140475,152.56,0.000224,31]
[330275737,1719222140529,152.56,0.000224,31]
[330275738,1719222140745,152.56,0.000224,31]
[330275739,1719222140804,152.56,0.000224,31]
[330275740,1719222140853,152.56,0.000224,31]
[330275741,1719222140907,152.56,0.000224,31]
[330275742,1719222140960,152.56,0.000224,31]
[330275743,1719222141017,152.56,0.000224,31]
[330275744,1719222141077,152.56,0.000224,31]
[330275746,1719222167144,3000.0,0.00014736,2]
[330275747,1719222203276,3000.0,0.000225,30]
[330275748,1719222203597,-500.0,0.00015102,2]
[330275749,1719222203624,-250.0,0.00015117,2]
[330275750,1719222203651,-408.1288375,0.00015259,2]
[330275751,1719222203679,-300.0,0.00015998,2]
[330275752,1719222203706,-300.0,0.00015998,2]
[330275753,1719222203738,-90025.71986475,0.00015999,2]
[330275754,1719222203764,-90025.71986475,0.00015999,2]
[330275755,1719222203790,-15532.43691394,0.00016,2]
[330275756,1719222203817,-1469.63982333,0.00016259,2]
[330275757,1719222203842,-5278.8466527,0.0001626,2]
[330275758,1719222203868,-1469.6398233,0.00016349,2]
[330275759,1719222203894,-154.77557542,0.00016401,2]
[330275760,1719222203921,-1469.6398233,0.00016438,2]
[330275761,1719222203947,-500.0,0.00016438,2]
[330275762,1719222203978,-4233.71,0.00016438,2]
[330275763,1719222204003,-500.0,0.00016438,2]
[330275764,1719222204030,-500.0,0.00016438,2]
[330275765,1719222204057,-500.0,0.00016438,2]
[330275766,1719222204084,-500.0,0.00016438,2]
[330275767,1719222204110,-500.0,0.00016438,2]
[330275768,1719222204136,-906.19,0.00016438,2]
[330275769,1719222204162,-3893.36,0.00016438,2]
[330275770,1719222204187,-504.43252799,0.00016438,2]
[330275771,1719222204217,-779.74,0.00016438,2]
[330275772,1719222204245,-522.92434896,0.00016438,2]
[330275773,1719222204272,-506.2761239,0.00016438,2]
[330275774,1719222204300,-505.16484612,0.00016438,2]
[330275775,1719222204332,-500.0,0.00016438,2]
[330275776,1719222204359,-500.0,0.00016438,2]
[330275777,1719222204392,-681.54,0.00016438,2]
[330275778,1719222204418,-19174.68,0.00016438,2]
[330275779,1719222204445,-500.0,0.00016438,2]
[330275780,1719222204480,-1960.37,0.00016438,2]
[330275781,1719222204506,-2095.96,0.00016438,2]
[330275782,1719222204534,-4102.19,0.00016438,2]
[330275783,1719222204562,-151.0,0.0001646,2]
[330275784,1719222204587,-243.860238,0.0001646,2]
[330275785,1719222204613,-151.0,0.0001646,2]
[330275786,1719222204640,-151.0,0.0001646,2]
[330275787,1719222204666,-1923.5,0.0001646,2]
[330275788,1719222204693,-500.0,0.0001646,2]
[330275789,1719222204729,-1333.02,0.0001646,2]
[330275790,1719222204756,-548.46,0.0001646,2]
[330275791,1719222204782,-500.0,0.0001646,2]
[330275792,1719222204808,-4096.92,0.0001646,2]
[330275793,1719222204834,-151.0,0.0001646,2]
[330275794,1719222204861,-151.275794,0.0001646,2]
[330275795,1719222204888,-151.0,0.0001646,2]
[330275796,1719222204914,-151.0,0.0001646,2]